fUSD/lending_fUSD_20240719
["ID","MTS","AMOUNT","RATE_DAILY","PERIOD"]
[332654496,1721405506965,-500.0,0.00034109,14]
[332654497,1721405506975,-500.0,0.00034109,14]
[332654498,1721405506984,-500.0,0.00034109,14]
[332654499,1721405506994,-1236.2,0.00034109,14]
[332654500,1721405507006,-1419.38,0.00034109,14]
[332654501,1721405507016,-500.0,0.00034109,14]
[332654502,1721405507026,-2723.49,0.00034109,14]
[332654503,1721405507035,-500.0,0.00034109,14]
[332654504,1721405507045,-1245.55,0.00034109,14]
[332654505,1721405507054,-500.0,0.00034109,14]
[332654506,1721405507063,-1708.14,0.00034109,14]
[332654507,1721405507072,-500.0,0.00034109,14]
[332654508,1721405507081,-2111.97,0.00034109,14]
[332654509,1721405507090,-500.0,0.00034109,14]
[332654510,1721405507099,-174.35633067,0.00034109,14]
[332654511,1721405507108,-2049.75,0.00034109,7]
[332654512,1721405507118,-500.0,0.00034109,14]
[332654513,1721405507127,-3150.3,0.00034109,14]
[332654514,1721405507136,-583.78,0.00034109,14]
[332654515,1721405507145,-1289.1,0.00034109,14]
[332654516,1721405507155,-766.34,0.00034109,14]
[332654517,1721405507164,-913.26,0.00034109,14]
[332654518,1721405507174,-2072.22,0.00034109,14]
[332654519,1721405507184,-1118.18,0.00034109,14]
[332654520,1721405507196,-2467.95,0.00034109,14]
[332654521,1721405507206,-2287.86,0.00034109,14]
[332654522,1721405507215,-500.0,0.00034109,14]
[332654523,1721405507226,-3489.46,0.00034109,14]
[332654524,1721405507236,-823.26,0.00034109,14]
[332654525,1721405507246,-1668.58,0.00034109,14]
[332654526,1721405507258,-500.0,0.00034109,14]
[332654527,1721405507268,-500.0,0.00034109,14]
[332654528,1721405507278,-1578.39,0.00034109,14]
[332654529,1721405507288,-500.0,0.00034109,14]
[332654530,1721405507298,-500.0,0.00034109,14]
[332654531,1721405507307,-500.0,0.00034109,14]
[332654532,1721405507317,-541.63,0.00034109,14]
[332654533,1721405507327,-756.25,0.00034109,14]
[332654534,1721405507338,-500.0,0.00034109,14]
[332654535,1721405507348,-500.0,0.00034109,14]
[332654536,1721405507357,-1412.59,0.00034109,14]
[332654537,1721405507368,-1067.11,0.00034109,14]
[332654538,1721405507380,-2948.42,0.00034109,14]
[332654539,1721405507392,-784.93,0.00034109,14]
[332654540,1721405507404,-500.0,0.00034109,14]
[332654541,1721405507419,-640.01,0.00034109,14]
[332654542,1721405507430,-500.0,0.00034109,14]
[332654543,1721405507442,-513.52,0.00034109,14]
[332654544,1721405507452,-1028.44,0.00034109,14]
[332654545,1721405507464,-2252.48,0.00034109,14]
[332654546,1721405507476,-500.0,0.00034109,14]
[332654547,1721405507487,-3712.8,0.00034109,14]
[332654548,1721405507499,-2021.9,0.00034109,14]
[332654549,1721405507512,-1403.26,0.00034109,14]
[332654550,1721405507524,-500.0,0.00034109,14]
[332654551,1721405507536,-674.78,0.00034109,14]
[332654552,1721405507548,-937.06,0.00034109,14]
[332654553,1721405507561,-2643.01,0.00034109,14]
[332654554,1721405507573,-1627.03,0.00034109,14]
[332654555,1721405507586,-2462.55,0.00034109,14]
[332654556,1721405507598,-500.0,0.00034109,14]
[332654557,1721405507609,-586.59283289,0.00034109,14]
[332654558,1721405507622,-3287.52,0.00034109,14]
[332654559,1721405507633,-500.0,0.00034109,14]
[332654560,1721405507644,-1936.03,0.00034109,14]
[332654561,1721405507659,-2333.6,0.00034109,14]
[332654562,1721405507671,-1244.09539326,0.00034109,14]
[332654585,1721406329482,1107.53767892,0.000118,2]
[332654587,1721406336413,478.40863638,0.00011,2]
[332654592,1721406355411,33126.00766644,0.0001358,2]
[332654647,1721406389095,20000.0,0.00025008,120]
[332654649,1721406398758,2092.14133123,0.000118,2]
[332656345,1721406470196,1461.35730898,0.00013999,2]
[332656538,1721406622415,246.21354619,0.00013999,2]
[332656575,1721406632118,-517.87346613,0.00014086,2]
[332656576,1721406632127,-162.16887086,0.00014086,2]
[332656578,1721406632139,-184.76573611,0.00014086,2]
[332656579,1721406632151,-346.93601851,0.00014261,2]
[332656580,1721406632161,-2507.37398623,0.00016951,2]
[332656581,1721406632170,-160.0513,0.000185,2]
[332656582,1721406632179,-1049.6389227,0.0001878,2]
[332656583,1721406632189,-446.118849,0.00021535,2]
[332656584,1721406632198,-208.15,0.00021644,2]
[332656585,1721406632207,-3230.88561699,0.00022336,2]
[332656586,1721406632217,-1821.70556836,0.00022336,2]
[332656587,1721406632233,-1332.16443164,0.00022336,2]
[332656588,1721406632243,-175.17313626,0.00023873,2]
[332656589,1721406632253,-582.1834321,0.00024,3]
[332656590,1721406632264,-2221.1070215,0.00024,3]
[332656591,1721406632274,-4778.89297849,0.00024174,2]
[332656734,1721406637778,-300.0,0.00014105,2]
[332656736,1721406637788,-5700.97733854,0.00024174,2]
[332656739,1721406637841,-486.32968297,0.00024174,2]
[332656740,1721406637851,-366.03,0.00024772,2]
[332656741,1721406637861,-271.79063422,0.00024899,2]
[332656742,1721406637871,-169.90752308,0.00024899,2]
[332656743,1721406637880,-163.50419177,0.00024899,2]
[332656744,1721406637890,-155.0,0.00024899,2]
[332656745,1721406637899,-474.07,0.00024942,2]
[332656746,1721406637908,-177.5,0.00024942,2]
[332656747,1721406637918,-150.0,0.00024978,2]
[332656748,1721406637927,-171.04080637,0.00024979,2]
[332656749,1721406637937,-1072.32716159,0.00024979,2]
[332656750,1721406637949,-223.76118201,0.00024979,2]
[332656751,1721406637958,-217.575786,0.00024979,2]
[332656752,1721406637967,-158.49361108,0.00024979,2]
[332656753,1721406637978,-5.78020683,0.00024979,2]
[332656754,1721406637988,-149.52307783,0.00024979,2]
[332656755,1721406637998,-155.0,0.00024989,2]
[332656756,1721406638008,-155.02986107,0.00024989,2]
[332656757,1721406638017,-376.2170611,0.00024989,2]
[332656758,1721406638028,-315.66972169,0.00024989,2]
[332656759,1721406638037,-144.91101767,0.00024989,2]
[332656760,1721406638048,-264.21069987,0.00024989,2]
[332656761,1721406638058,-527.80162773,0.00024996,2]
[332656762,1721406638067,-300.0,0.00024996,2]
[332656763,1721406638076,-274.83759123,0.00024996,2]
[332656764,1721406638085,-157.27225688,0.00024999,2]
[332656765,1721406638094,-4262.7606288,0.00024999,3]
[332656766,1721406638107,-6623.0096159,0.00024999,3]
[332656767,1721406638209,-1172.61202926,0.00024999,3]
[332656768,1721406638219,-1000.0,0.00025844,120]
[332656769,1721406638229,-617.65808783,0.00025876,2]
[332656770,1721406638238,-900.0,0.00025889,2]
[332656771,1721406638248,-500.0,0.00025889,2]
[332656772,1721406638258,-5867.5762012,0.0002589,7]
[332656773,1721406638268,-2305.95369248,0.0002589,7]
[332656774,1721406638280,-4634.25630754,0.0002589,7]
[332656775,1721406638289,-150.0,0.000259,2]
[332656776,1721406638299,-150.0,0.00025989,2]
[332656777,1721406638309,-166.66666668,0.00026358,2]
[332656778,1721406638318,-3054.48,0.00026366,2]
[332656779,1721406638327,-900.0,0.00026437,2]
[332656780,1721406638337,-1000.0,0.00026536,2]
[332656781,1721406638346,-181.96,0.00026615,2]
[332656782,1721406638360,-175.77,0.00026632,120]
[332656783,1721406638372,-594.73810879,0.00026632,2]
[332656784,1721406638381,-250.0,0.00026655,2]
[332656785,1721406638391,-3972.74443133,0.00026788,2]
[332656786,1721406638400,-1761.75637949,0.0002679,2]
[332656787,1721406638411,-1761.75637949,0.0002679,2]
[332656788,1721406638420,-23900.0,0.00026808,2]
[332656789,1721406638430,-3398.95100233,0.00026828,2]
[332656790,1721406638440,-704.2521239,0.00026828,2]
[332656791,1721406638449,-208.31669417,0.00026847,2]
[332656792,1721406638459,-1353.12,0.00026847,2]
[332656793,1721406638468,-255.89656553,0.00026847,2]
[332656794,1721406638477,-644.42502358,0.00026847,2]
[332656795,1721406638488,-156.35486835,0.00026847,2]
[332656796,1721406638498,-216.17,0.00026957,2]
[332656797,1721406638508,-900.0,0.00026985,2]
[332656799,1721406638518,-15725.95124819,0.00026985,2]
[332656802,1721406638531,-1715.38863992,0.00026985,2]
[332656804,1721406638543,-1721.47811189,0.00026985,2]
[332656807,1721406638553,-500.0,0.00026985,2]
[332656810,1721406638562,-1381.11330843,0.00027,7]
[332656812,1721406638574,-1423.16486127,0.00027,7]
[332656815,1721406638586,-1604.62300768,0.00027,7]
[332656817,1721406638595,-366.03,0.00027035,2]
[332656819,1721406638606,-284.32,0.00027189,120]
[332656821,1721406638616,-796.76,0.00027362,2]
[332656823,1721406638626,-1000.0,0.00027397,10]
[332656825,1721406638636,-683.85551871,0.00027434,2]
[332656830,1721406638709,-157.76448129,0.00027434,2]
[332656832,1721406638718,-900.0,0.00027533,2]
[332656834,1721406638728,-250.0,0.00027536,2]
[332656835,1721406638738,-1273.89,0.00027791,2]
[332656836,1721406638747,-177.51,0.00027971,2]
[332656837,1721406638757,-227.43774807,0.00027989,5]
[332656838,1721406638766,-155.0,0.00027989,2]
[332656839,1721406638776,-308.78185671,0.00027999,2]
[332656840,1721406638785,-353.62676048,0.00027999,2]
[332656841,1721406638794,-900.0,0.00028081,2]
[332656842,1721406638804,-500.0,0.00028081,2]
[332656843,1721406638813,-12388.0,0.000283,2]
[332656844,1721406638823,-308.78185671,0.00028399,2]
[332656845,1721406638833,-181.5973992,0.00028832,2]
[332656846,1721406638843,-153.88854847,0.00028927,2]
[332656847,1721406638854,-11493.0,0.00029,3]
[332656848,1721406638863,-900.0,0.00029177,2]
[332656849,1721406638873,-500.0,0.00029177,2]
[332656850,1721406638884,-1273.89,0.00029181,2]
[332656851,1721406638894,-366.03,0.00029299,2]
[332656852,1721406638903,-1009.55659996,0.000295,2]
[332656853,1721406638913,-10535.58373399,0.000297,5]
[332656856,1721406640097,-926.05339171,0.00022336,2]
[332656857,1721406640112,-2340.54430012,0.00022336,2]
[332656858,1721406640124,-1399.0590766,0.00022336,2]
[332656859,1721406640137,-323.5281868,0.00022336,2]
[332656860,1721406640147,-201.19181319,0.000297,5]
[332656861,1721406640160,-756.22445282,0.000297,5]
[332656862,1721406640170,-578.56245848,0.00030185,2]
[332656863,1721406640182,-466.9208,0.00030185,2]
[332656894,1721406642943,-201.25931259,0.00024996,2]
[332656896,1721406642953,-1128.69957639,0.00030185,2]
[332656898,1721406642964,-900.0,0.00030273,10]
[332656899,1721406642973,-500.0,0.00030273,10]
[332656900,1721406642983,-1273.89,0.0003057,2]
[332656901,1721406642993,-284.32,0.00030587,120]
[332656902,1721406643003,-150.00000001,0.00030797,7]
[332656903,1721406643012,-841.62,0.00030863,2]
[332656904,1721406643022,-50009.39646107,0.00031088,2]
[332656905,1721406643031,-153.36026835,0.00031307,7]
[332656906,1721406643041,-900.0,0.00031369,10]
[332656907,1721406643051,-151.81260137,0.00031431,7]
[332656908,1721406643061,-1992.0,0.000315,3]
[332656909,1721406643071,-511.0,0.000315,3]
[332656910,1721406643080,-600.0,0.00031561,13]
[332656911,1721406643090,-366.03,0.00031563,2]
[332656912,1721406643099,-181.59739921,0.00031573,7]
[332656913,1721406643112,-600.0,0.00031956,14]
[332656914,1721406643122,-1273.89,0.0003196,2]
[332656915,1721406643131,-1038.03156186,0.00032,30]
[332656916,1721406643144,-490.9518,0.00032108,2]
[332656917,1721406643154,-662.3303,0.00032108,2]
[332656918,1721406643163,-452.7153,0.00032108,2]
[332656919,1721406643175,-5671.47022285,0.00032198,5]
[332656920,1721406643186,-85786.4538,0.00032208,2]
[332656921,1721406643197,-151.81260137,0.00032275,7]
[332656922,1721406643209,-152.18495317,0.00032401,7]
[332656923,1721406643219,-28357.3511142,0.00032427,5]
[332656924,1721406643231,-900.0,0.00032465,10]
[332656925,1721406643242,-1000.0,0.000325,2]
[332656926,1721406643252,-322.52528261,0.00032676,2]
[332656927,1721406643263,-227.97173333,0.00032681,4]
[332656928,1721406643274,-600.0,0.00032745,17]
[332656929,1721406643284,-600.0,0.00032745,17]
[332656930,1721406643294,-5671.47022285,0.00032766,5]
[332656931,1721406643305,-500.0,0.00032776,2]
[332656932,1721406643315,-7495.5044,0.00032776,2]
[332656933,1721406643325,-613.58185991,0.000328,30]
[332656934,1721406643335,-1014.52,0.000328,2]
[332656935,1721406643345,-307.46,0.000328,2]
[332656936,1721406643359,-500.0,0.00032821,30]
[332656937,1721406643371,-155.29000583,0.00032845,4]
[332656938,1721406643382,-208.93331,0.00032845,4]
[332656939,1721406643392,-1266.87800095,0.00032845,4]
[332656940,1721406643402,-152.116794,0.00032848,7]
[332656941,1721406643412,-17014.4106686,0.00032866,5]
[332656942,1721406643422,-156.41,0.00032866,2]
[332656943,1721406643432,-155.37111202,0.00032873,7]
[332656944,1721406643443,-12157.06224605,0.00032875,4]
[332656945,1721406643453,-506.47929574,0.00032876,14]
[332656946,1721406643463,-503.90285481,0.00032876,14]
[332656947,1721406643474,-500.0,0.00032876,14]
[332656948,1721406643483,-500.0,0.00032876,14]
[332656949,1721406643500,-500.0,0.00032876,14]
[332656950,1721406643510,-500.0,0.00032876,14]
[332656951,1721406643521,-200.0,0.00032876,7]
[332656952,1721406643532,-500.0,0.00032876,14]
[332656953,1721406643543,-500.0,0.00032876,14]
[332656954,1721406643554,-500.0,0.00032876,14]
[332656955,1721406643566,-500.0,0.00032876,14]
[332656956,1721406643576,-499.69489206,0.00032876,14]
[332656957,1721406643588,-500.0,0.00032876,14]
[332656958,1721406643599,-500.0,0.00032876,14]
[332656959,1721406643613,-359.81625439,0.00032876,14]
[332656960,1721406643626,-500.0,0.00032876,14]
[332656961,1721406643636,-500.0,0.00032876,14]
[332656962,1721406643645,-500.0,0.00032876,14]
[332656963,1721406643655,-500.0,0.00032876,14]
[332656964,1721406643666,-200.0,0.00032876,7]
[332656965,1721406643676,-500.0,0.00032876,14]
[332656966,1721406643686,-500.0,0.00032876,14]
[332656968,1721406643697,-608.07,0.00032876,30]
[332656969,1721406643710,-500.0,0.00032876,14]
[332656970,1721406643721,-500.0,0.00032876,14]
[332656971,1721406643732,-500.0,0.00032876,14]
[332656972,1721406643743,-500.0,0.00032876,14]
[332656973,1721406643754,-500.0,0.00032876,14]
[332656974,1721406643765,-500.0,0.00032876,14]
[332656975,1721406643775,-262.347648,0.00032876,14]
[332656976,1721406643787,-500.0,0.00032876,14]
[332656977,1721406643798,-500.0,0.00032876,14]
[332656978,1721406643808,-500.0,0.00032876,14]
[332656979,1721406643818,-500.0,0.00032876,14]
[332656981,1721406643828,-500.0,0.00032876,14]
[332656983,1721406643838,-500.0,0.00032876,14]
[332656984,1721406643848,-500.0,0.00032876,14]
[332656985,1721406643863,-586.55,0.00032876,14]
[332656986,1721406643873,-618.5,0.00032876,14]
[332656987,1721406643883,-500.0,0.00032876,14]
[332656988,1721406643894,-519.90794779,0.00032876,14]
[332656989,1721406643904,-646.1,0.00032876,14]
[332656990,1721406643914,-500.0,0.00032876,14]
[332656991,1721406643924,-500.0,0.00032876,14]
[332656992,1721406643936,-446.45189923,0.00032876,14]
[332656993,1721406643948,-500.0,0.00032876,14]
[332656994,1721406643959,-597.62,0.00032876,14]
[332656995,1721406643968,-500.0,0.00032876,14]
[332656996,1721406643978,-500.0,0.00032876,14]
[332656997,1721406643988,-500.0,0.00032876,14]
[332656998,1721406643999,-500.61549971,0.00032876,14]
[332656999,1721406644009,-500.0,0.00032876,14]
[332657000,1721406644018,-575.36,0.00032876,14]
[332657001,1721406644028,-500.0,0.00032876,14]
[332657002,1721406644038,-500.0,0.00032876,14]
[332657003,1721406644048,-411.04171885,0.00032876,14]
[332657004,1721406644059,-500.0,0.00032876,14]
[332657005,1721406644070,-1000.0,0.00032876,14]
[332657006,1721406644079,-500.0,0.00032876,14]
[332657007,1721406644089,-500.0,0.00032876,14]
[332657008,1721406644099,-1106.36,0.00032876,14]
[332657009,1721406644112,-361.10778785,0.00032876,14]
[332657010,1721406644122,-500.0,0.00032876,14]
[332657011,1721406644132,-500.0,0.00032876,14]
[332657012,1721406644142,-500.0,0.00032876,14]
[332657013,1721406644151,-500.0,0.00032876,14]
[332657014,1721406644161,-615.61,0.00032876,14]
[332657015,1721406644171,-500.0,0.00032876,14]
[332657016,1721406644181,-500.0,0.00032876,14]
[332657017,1721406644191,-500.0,0.00032876,14]
[332657018,1721406644201,-500.0,0.00032876,14]
[332657019,1721406644210,-627.43,0.00032876,14]
[332657020,1721406644220,-500.0,0.00032876,14]
[332657021,1721406644230,-346.70371969,0.00032876,14]
[332657022,1721406644241,-1500.0,0.00032876,14]
[332657023,1721406644252,-500.0,0.00032876,7]
[332657024,1721406644262,-768.33,0.00032876,2]
[332657025,1721406644273,-468.3864,0.000329,2]
[332657026,1721406644282,-159.00411161,0.00032913,2]
[332657027,1721406644291,-500.0,0.00032958,33]
[332657028,1721406644301,-596.34499928,0.00032985,2]
[332657029,1721406644310,-5671.47022285,0.00033003,5]
[332657030,1721406644319,-517.03,0.00033013,14]
[332657031,1721406644329,-500.0,0.00033013,14]
[332657032,1721406644338,-483.53299144,0.00033013,14]
[332657033,1721406644347,-500.0,0.00033013,14]
[332657034,1721406644360,-500.0,0.00033013,14]
[332657035,1721406644370,-500.0,0.00033013,14]
[332657036,1721406644379,-200.0,0.00033013,7]
[332657037,1721406644389,-608.07,0.00033013,30]
[332657038,1721406644398,-500.0,0.00033013,14]
[332657039,1721406644407,-500.0,0.00033013,14]
[332657040,1721406644418,-500.0,0.00033013,14]
[332657041,1721406644428,-618.5,0.00033013,14]
[332657042,1721406644439,-268.4,0.00033013,14]
[332657043,1721406644449,-500.0,0.00033013,14]
[332657044,1721406644458,-1106.36,0.00033013,14]
[332657045,1721406644468,-500.0,0.00033013,14]
[332657046,1721406644477,-615.61,0.00033013,14]
[332657047,1721406644487,-500.0,0.00033013,14]
[332657048,1721406644499,-500.0,0.00033013,14]
[332657049,1721406644509,-627.43,0.00033013,14]
[332657050,1721406644519,-500.0,0.00033013,14]
[332657051,1721406644529,-500.0,0.00033013,7]
[332657052,1721406644538,-768.33,0.00033013,2]
[332657053,1721406644548,-7500.0,0.0003305,2]
[332657054,1721406644557,-5671.47022285,0.0003309,5]
[332657055,1721406644567,-500.0,0.00033095,36]
[332657056,1721406644576,-2000.0,0.000331,9]
[332657057,1721406644585,-2000.0,0.000331,9]
[332657058,1721406644594,-355.55,0.00033102,2]
[332657059,1721406644605,-300.0,0.00033102,2]
[332657060,1721406644616,-150.0,0.00033102,2]
[332657061,1721406644628,-150.0,0.00033102,2]
[332657062,1721406644639,-355.55,0.00033102,2]
[332657063,1721406644652,-150.0,0.00033102,2]
[332657064,1721406644661,-529.52,0.00033102,2]
[332657065,1721406644671,-355.55,0.00033102,2]
[332657066,1721406644680,-529.52,0.00033102,2]
[332657067,1721406644690,-354.55,0.00033102,2]
[332657068,1721406644979,-5671.47022285,0.00033128,5]
[332657069,1721406644991,-11342.9404457,0.00033138,5]
[332657070,1721406645001,-500.0,0.00033138,14]
[332657071,1721406645012,-500.0,0.00033138,14]
[332657072,1721406645022,-500.0,0.00033138,14]
[332657073,1721406645032,-500.0,0.00033138,14]
[332657074,1721406645043,-500.0,0.00033138,14]
[332657075,1721406645053,-500.0,0.00033138,14]
[332657076,1721406645062,-500.0,0.00033138,14]
[332657077,1721406645072,-500.0,0.00033138,14]
[332657078,1721406645083,-500.0,0.00033138,14]
[332657079,1721406645094,-500.0,0.00033138,14]
[332657080,1721406645105,-500.0,0.00033138,14]
[332657081,1721406645115,-565.93935008,0.00033138,14]
[332657082,1721406645124,-500.0,0.00033138,14]
[332657083,1721406645134,-500.0,0.00033138,14]
[332657084,1721406645144,-500.0,0.00033138,14]
[332657085,1721406645154,-500.0,0.00033138,14]
[332657086,1721406645165,-500.0,0.00033138,14]
[332657087,1721406645176,-500.0,0.00033138,14]
[332657088,1721406645187,-500.0,0.00033138,14]
[332657089,1721406645198,-500.0,0.00033138,14]
[332657090,1721406645207,-500.0,0.00033138,14]
[332657091,1721406645216,-500.0,0.00033138,2]
[332657092,1721406645225,-500.0,0.00033138,14]
[332657093,1721406645234,-624.46,0.00033138,14]
[332657094,1721406645244,-500.0,0.00033138,14]
[332657095,1721406645254,-500.0,0.00033138,14]
[332657096,1721406645264,-500.0,0.00033138,14]
[332657097,1721406645274,-500.0,0.00033138,14]
[332657098,1721406645286,-500.0,0.00033138,14]
[332657099,1721406645296,-5671.47022285,0.0003314,5]
[332657100,1721406645308,-337.2912765,0.00033148,14]
[332657101,1721406645320,-500.0,0.00033148,14]
[332657102,1721406645330,-500.0,0.00033148,14]
[332657103,1721406645340,-500.0,0.00033148,14]
[332657104,1721406645351,-500.0,0.00033148,14]
[332657105,1721406645363,-500.0,0.00033148,14]
[332657106,1721406645373,-500.0,0.00033148,14]
[332657107,1721406645384,-500.0,0.00033148,14]
[332657108,1721406645395,-500.0,0.00033148,14]
[332657109,1721406645406,-500.0,0.00033148,14]
[332657110,1721406645415,-500.0,0.00033148,14]
[332657111,1721406645425,-500.0,0.00033148,14]
[332657112,1721406645435,-500.0,0.00033148,14]
[332657113,1721406645446,-500.0,0.00033148,14]
[332657114,1721406645457,-621.5,0.00033148,14]
[332657115,1721406645467,-363.69413783,0.00033148,14]
[332657116,1721406645477,-500.0,0.00033148,14]
[332657117,1721406645487,-327.457197,0.00033148,14]
[332657118,1721406645498,-500.0,0.00033148,14]
[332657119,1721406645508,-500.0,0.00033148,14]
[332657121,1721406645517,-500.0,0.00033148,14]
[332657122,1721406645527,-500.0,0.00033148,14]
[332657123,1721406645538,-278.62064368,0.00033148,14]
[332657124,1721406645547,-500.0,0.00033148,14]
[332657125,1721406645558,-500.0,0.00033148,14]
[332657126,1721406645567,-500.0,0.00033148,14]
[332657127,1721406645577,-500.0,0.00033148,14]
[332657128,1721406645587,-362.87239834,0.00033148,2]
[332657129,1721406645595,-500.0,0.00033148,14]
[332657130,1721406645606,-500.0,0.00033148,14]
[332657132,1721406645616,-500.0,0.00033148,14]
[332657134,1721406645625,-500.0,0.00033148,14]
[332657136,1721406645636,-500.0,0.00033148,14]
[332657138,1721406645645,-500.0,0.00033148,14]
[332657140,1721406645654,-500.0,0.00033148,14]
[332657142,1721406645665,-547.67,0.00033148,14]
[332657144,1721406645675,-500.0,0.00033148,14]
[332657146,1721406645686,-500.0,0.00033148,14]
[332657148,1721406645696,-500.0,0.00033148,14]
[332657150,1721406645709,-500.0,0.0003315,14]
[332657152,1721406645719,-500.0,0.0003315,14]
[332657154,1721406645728,-500.0,0.0003315,14]
[332657156,1721406645738,-500.0,0.0003315,14]
[332657158,1721406645747,-200.0,0.0003315,7]
[332657160,1721406645761,-608.07,0.0003315,30]
[332657162,1721406645773,-500.0,0.0003315,14]
[332657164,1721406645782,-561.00870051,0.0003315,14]
[332657167,1721406645794,-500.0,0.0003315,14]
[332657169,1721406645805,-618.5,0.0003315,14]
[332657171,1721406645815,-500.0,0.0003315,14]
[332657173,1721406645824,-1106.36,0.0003315,14]
[332657175,1721406645833,-500.0,0.0003315,14]
[332657177,1721406645844,-615.61,0.0003315,14]
[332657179,1721406645854,-500.0,0.0003315,14]
[332657181,1721406645868,-500.0,0.0003315,14]
[332657183,1721406645879,-627.43,0.0003315,14]
[332657185,1721406645888,-500.0,0.0003315,14]
[332657187,1721406645897,-1500.0,0.0003315,15]
[332657189,1721406645907,-500.0,0.0003315,7]
[332657191,1721406645916,-768.33,0.0003315,2]
[332657193,1721406645926,-500.0,0.00033232,39]
[332657195,1721406645935,-5671.47022285,0.00033269,5]
[332657197,1721406645946,-500.0,0.00033275,14]
[332657199,1721406645956,-510.05963679,0.00033275,14]
[332657201,1721406645966,-500.0,0.00033275,14]
[332657203,1721406645976,-500.0,0.00033275,14]
[332657205,1721406645986,-500.0,0.00033275,14]
[332657207,1721406645995,-500.0,0.00033275,14]
[332657209,1721406646005,-500.0,0.00033275,14]
[332657211,1721406646014,-500.0,0.00033275,14]
[332657213,1721406646023,-500.0,0.00033275,14]
[332657215,1721406646032,-500.0,0.00033275,14]
[332657217,1721406646042,-500.0,0.00033275,14]
[332657219,1721406646053,-500.0,0.00033275,14]
[332657221,1721406646063,-384.11,0.00033275,14]
[332657223,1721406646072,-500.0,0.00033275,14]
[332657225,1721406646082,-500.0,0.00033275,14]
[332657227,1721406646092,-500.0,0.00033275,14]
[332657229,1721406646101,-500.0,0.00033275,14]
[332657231,1721406646112,-5671.47022285,0.00033277,5]
[332657233,1721406646123,-500.0,0.00033285,14]
[332657235,1721406646132,-500.0,0.00033285,14]
[332657236,1721406646142,-500.0,0.00033285,14]
[332657238,1721406646151,-500.0,0.00033285,14]
[332657240,1721406646160,-500.0,0.00033285,14]
[332657242,1721406646170,-235.83,0.00033285,14]
[332657244,1721406646180,-324.74,0.00033285,14]
[332657246,1721406646190,-231.9,0.00033285,14]
[332657248,1721406646199,-579.44788604,0.00033285,14]
[332657250,1721406646208,-500.0,0.00033285,14]
[332657252,1721406646219,-500.0,0.00033285,14]
[332657254,1721406646229,-547.67,0.00033285,14]
[332657257,1721406646240,-500.0,0.00033287,14]
[332657259,1721406646253,-500.0,0.00033287,14]
[332657261,1721406646263,-500.0,0.00033287,14]
[332657263,1721406646274,-417.13,0.00033287,14]
[332657265,1721406646285,-200.0,0.00033287,7]
[332657268,1721406646296,-608.07,0.00033287,30]
[332657270,1721406646308,-500.0,0.00033287,14]
[332657272,1721406646319,-305.65,0.00033287,14]
[332657274,1721406646328,-618.5,0.00033287,14]
[332657276,1721406646338,-446.59,0.00033287,14]
[332657278,1721406646347,-1106.36,0.00033287,14]
[332657280,1721406646355,-500.0,0.00033287,14]
[332657281,1721406646367,-615.61,0.00033287,14]
[332657283,1721406646376,-500.0,0.00033287,14]